bitfinex-derivatives/quotes_SOLF0:USTF0_20260108
["timestamp","ask_amount","ask_price","bid_price","bid_amount"]
[1767854204522,0.04845081,135.2,135.15,0.3321299]
[1767854204721,5.66813928,135.19,135.15,0.3321299]
[1767854204928,5.66813928,135.18,135.15,0.3321299]
[1767854205124,0.04845081,135.2,135.15,0.3321299]
[1767854205427,5.66922887,135.19,135.15,0.3321299]
[1767854205719,5.66922887,135.18,135.15,0.3321299]
[1767854205921,0.04845081,135.2,135.15,0.3321299]
[1767854206117,5.66931703,135.19,135.15,0.3321299]
[1767854206312,5.66931703,135.18,135.15,0.3321299]
[1767854206526,0.04845081,135.2,135.15,0.3321299]
[1767854206727,5.67608825,135.19,135.15,0.3321299]
[1767854207026,5.67608825,135.18,135.15,0.3321299]
[1767854207227,0.04845081,135.2,135.15,0.3321299]
[1767854207425,5.67698249,135.19,135.15,0.3321299]
[1767854207628,5.67698249,135.18,135.15,0.3321299]
[1767854207827,0.04845081,135.2,135.15,0.3321299]
[1767854208129,5.67698249,135.19,135.15,0.3321299]
[1767854208327,5.67698249,135.18,135.15,0.3321299]
[1767854208535,6.663,135.24,135.16,0.3321299]
[1767854208737,5.6794668,135.23,135.16,0.38599439]
[1767854209037,6.663,135.24,135.16,0.38599439]
[1767854209524,6.663,135.24,135.17,6.666]
[1767854209834,6.6622,135.25,135.18,0.3059845]
[1767854210026,103.5913,135.31,135.19,0.3059845]
[1767854210328,106.50731076,135.32,135.21,0.3059845]
[1767854210639,6.6608,135.28,135.21,0.3059845]
[1767854211121,6.6608,135.28,135.23,0.05209996]
[1767854212329,6.6601,135.3,135.23,0.05209996]
[1767854212528,103.5881,135.31,135.23,0.05209996]
[1767854212835,106.50731076,135.32,135.23,0.05209996]
[1767854212836,6.6602,135.29,135.23,0.05209996]
[1767854213327,6.6602,135.29,135.22,6.9694845]
[1767854213727,6.6602,135.29,135.25,0.05133165]
[1767854216535,6.6607,135.28,135.25,0.05133165]
[1767854216745,6.6607,135.28,135.22,0.3059845]
[1767854216930,6.6607,135.28,135.2,87.7059845]
[1767854217130,6.71328746,135.28,135.2,87.7059845]
[1767854217734,6.71328746,135.28,135.21,0.3059845]
[1767854217938,0.05258746,135.28,135.22,0.3059845]
[1767854218636,0.05258746,135.28,135.23,0.3059845]
[1767854220128,0.05258746,135.28,135.24,0.3059845]
[1767854220427,0.05258746,135.28,135.22,0.3059845]
[1767854221139,0.05258746,135.28,135.24,0.3059845]
[1767854221931,6.6593,135.31,135.24,0.3059845]
[1767854222132,103.567,135.34,135.25,0.31522279]
[1767854222536,122.68784271,135.36,135.25,0.31522279]
[1767854222833,122.68784271,135.36,135.26,0.31522279]
[1767854222834,6.6583,135.33,135.26,0.31522279]
[1767854223236,6.6574,135.35,135.28,0.31522279]
[1767854223426,16.21263195,135.36,135.28,0.31522279]
[1767854223626,16.21263195,135.36,135.29,0.31522279]
[1767854223947,16.21263195,135.36,135.3,0.31522279]
[1767854224144,16.21263195,135.36,135.31,0.31522279]
[1767854224339,16.21263195,135.36,135.31,0.36213827]
[1767854224537,13.7073164,135.36,135.31,0.36213827]
[1767854224744,10.3710241,135.36,135.32,0.31522279]
[1767854225235,10.3710241,135.36,135.32,87.69522279]
[1767854225847,10.3710241,135.36,135.32,87.38]
[1767854227636,10.3710241,135.36,135.32,87.69522279]
[1767854230042,8.85049174,135.41,135.33,0.31162661]
[1767854230450,0.30745048,135.4,135.33,0.31162661]
[1767854230837,1.86556844,135.42,135.36,0.04917948]
[1767854231037,2.17301892,135.42,135.36,0.04917948]
[1767854231244,0.30745048,135.41,135.36,0.04917948]
[1767854231650,0.30745048,135.39,135.33,87.34]
[1767854232438,6.96295048,135.39,135.33,87.34]
[1767854232751,0.05076623,135.4,135.34,0.31162661]
[1767854233843,0.05076623,135.4,135.35,87.65162661]
[1767854234550,0.05076623,135.4,135.35,94.30872661]
[1767854234844,0.05076623,135.4,135.35,0.31162661]
[1767854235038,0.05076623,135.4,135.32,103.5769]
[1767854235039,0.35821671,135.4,135.32,2.17719505]
[1767854235240,0.35821671,135.4,135.34,87.32]
[1767854237550,0.05076623,135.4,135.34,87.63162661]
[1767854237755,0.05076623,135.4,135.35,0.31162661]
[1767854238052,87.42,135.45,135.36,0.31162661]
[1767854238242,0.30745048,135.45,135.38,0.31162661]
[1767854238442,87.36,135.49,135.35,1.86556844]
[1767854238443,0.30745048,135.48,135.4,2.17719505]
[1767854238942,0.30745048,135.51,135.41,1.86556844]
[1767854239263,0.30745048,135.51,135.43,0.31162661]
[1767854239456,0.30745048,135.5,135.45,0.05116967]
[1767854239955,7.01077479,135.48,135.41,87.32]
[1767854240152,0.35987479,135.48,135.41,87.32]
[1767854240348,0.35987479,135.48,135.41,87.63162661]
[1767854243155,0.35987479,135.48,135.41,94.28572661]
[1767854243354,0.35987479,135.48,135.41,87.63162661]
[1767854244443,7.01087479,135.48,135.41,0.31162661]
[1767854245361,0.35987479,135.48,135.41,0.31162661]
[1767854245747,0.35987479,135.48,135.41,6.96562661]
[1767854247160,0.05242431,135.48,135.43,0.31162661]
[1767854247362,6.649,135.52,135.43,0.31162661]
[1767854247549,0.30745048,135.54,135.44,87.28]
[1767854247858,0.30745048,135.54,135.45,0.31162661]
[1767854248054,0.30745048,135.54,135.45,87.59162661]
[1767854248651,6.95555048,135.54,135.45,87.59162661]
[1767854248853,0.30745048,135.54,135.48,0.04964974]
[1767854250263,0.30745048,135.57,135.48,0.36127635]
[1767854250850,0.30745048,135.57,135.48,0.31162661]
[1767854251259,0.30745048,135.56,135.48,0.31162661]
[1767854251456,0.0508403,135.54,135.48,0.31162661]
[1767854252554,0.37579476,135.54,135.45,0.32433122]
[1767854252762,0.37579476,135.54,135.46,87.24]
[1767854252957,0.32495446,135.54,135.46,87.24]
[1767854253464,6.6477,135.55,135.48,0.32433122]
[1767854253761,0.32495446,135.57,135.49,0.05452262]
[1767854254356,6.97165446,135.57,135.49,6.70452262]
[1767854254962,87.32,135.59,135.49,0.05452262]
[1767854254963,0.32495446,135.56,135.49,0.05452262]
[1767854255562,0.32495446,135.56,135.48,0.32433122]
[1767854255758,0.32495446,135.56,135.51,0.05248806]
[1767854259961,6.97205446,135.56,135.51,0.05248806]
[1767854260763,6.6475,135.55,135.51,0.05248806]
[1767854261158,6.97245446,135.55,135.51,0.05248806]
[1767854261358,7.02556527,135.54,135.48,0.32433122]
[1767854262765,0.32495446,135.52,135.45,6.6522]
[1767854262963,0.32495446,135.52,135.45,2.18536326]
[1767854263167,0.32495446,135.54,135.46,0.32433122]
[1767854263572,0.04864484,135.5,135.46,0.32433122]
[1767854264272,0.04864484,135.5,135.43,87.54433122]
[1767854265464,0.04864484,135.5,135.45,2.18536326]
[1767854266161,0.04864484,135.5,135.45,8.83756326]
[1767854268273,0.04864484,135.5,135.46,6.6517]
[1767854268475,6.97375446,135.53,135.46,6.70589512]
[1767854268674,6.97375446,135.53,135.46,7.03022634]
[1767854268871,0.32495446,135.53,135.46,7.03022634]
[1767854269665,0.32495446,135.53,135.47,6.6512]
[1767854270072,0.32495446,135.53,135.47,6.97553122]
[1767854271069,0.32495446,135.53,135.46,0.05419512]
[1767854272575,6.97335446,135.53,135.46,0.05419512]
[1767854274178,6.97335446,135.53,135.46,6.70589512]
[1767854275482,6.97335446,135.53,135.46,0.05419512]
[1767854276793,0.32495446,135.56,135.47,1.86103204]
[1767854276972,0.32495446,135.56,135.48,0.32433122]
[1767854277581,0.32495446,135.56,135.51,0.04844331]
[1767854277782,6.97235446,135.55,135.51,0.04844331]
[1767854277987,0.32495446,135.57,135.51,0.04844331]
[1767854279587,6.647,135.56,135.51,0.04844331]
[1767854279888,6.97195446,135.56,135.51,0.04844331]
[1767854280186,0.32495446,135.56,135.51,0.04844331]
[1767854280483,6.97125446,135.58,135.51,0.04844331]
[1767854280678,0.32495446,135.57,135.51,0.04844331]
[1767854282482,0.30215173,135.59,135.52,0.32637907]
[1767854283183,0.30215173,135.61,135.53,2.18741111]
[1767854283590,0.30215173,135.61,135.54,6.6477]
[1767854283788,0.30215173,135.61,135.56,0.04994383]
[1767854284290,6.94675173,135.61,135.56,0.04994383]
[1767854284890,0.32232429,135.59,135.51,89.37105228]
[1767854285280,0.32232429,135.58,135.51,0.31002024]
[1767854285685,0.32232429,135.57,135.48,0.31002024]
[1767854285882,0.32232429,135.56,135.48,0.31002024]
[1767854286187,2.18335633,135.56,135.48,0.31002024]
[1767854286377,0.05005249,135.54,135.48,0.31002024]
[1767854286894,0.05005249,135.54,135.49,0.31002024]
[1767854288580,0.05005249,135.54,135.49,6.96012024]
[1767854289493,0.05005249,135.54,135.49,0.31002024]
[1767854292190,103.3834,135.59,135.5,6.6495]
[1767854292191,6.6462,135.58,135.5,6.6495]
[1767854292396,0.32232429,135.59,135.51,0.31002024]
[1767854292789,0.32232429,135.59,135.51,87.51002024]
[1767854292990,6.6461,135.58,135.51,87.51002024]
[1767854293190,0.32232429,135.59,135.52,0.31002024]
[1767854293499,0.32232429,135.62,135.52,0.31002024]
[1767854293698,0.32232429,135.62,135.53,0.04881642]
[1767854293997,0.32232429,135.62,135.53,0.35883666]
[1767854294298,6.6452,135.6,135.53,0.31002024]
[1767854294496,6.6452,135.6,135.56,0.05193446]
[1767854297801,6.96752429,135.6,135.56,0.05193446]
[1767854299395,6.96782429,135.59,135.52,0.31002024]
[1767854299590,0.37532226,135.59,135.52,0.31002024]
[1767854300591,0.37532226,135.59,135.52,6.95882024]
[1767854301601,0.37532226,135.59,135.53,6.6482]
[1767854301990,0.37532226,135.59,135.53,6.95822024]
[1767854304396,0.05299797,135.59,135.54,0.31002024]
[1767854305899,0.05299797,135.59,135.54,6.95782024]
[1767854307206,0.05299797,135.59,135.55,6.6472]
[1767854308394,0.05299797,135.59,135.54,0.31002024]
[1767854308995,0.37532226,135.59,135.52,0.31002024]
[1767854309397,0.32232429,135.59,135.52,0.31002024]
[1767854309790,0.04843096,135.57,135.52,0.31002024]
[1767854311293,0.37075525,135.57,135.49,6.6501]
[1767854311605,0.37075525,135.57,135.48,87.49002024]
[1767854311807,6.96972429,135.55,135.48,87.49002024]
[1767854312110,6.96972429,135.55,135.48,0.31002024]
[1767854312111,0.05692149,135.54,135.48,0.31002024]
[1767854316903,0.05692149,135.54,135.49,0.30051888]
[1767854317106,0.30981357,135.58,135.49,0.30051888]
[1767854317300,0.30981357,135.58,135.51,0.30051888]
[1767854317301,5.54504213,135.57,135.51,0.30051888]
[1767854317501,5.54504213,135.56,135.51,0.30051888]
[1767854317704,0.30981357,135.6,135.52,0.30051888]
[1767854317901,5.5470135,135.59,135.52,0.30051888]
[1767854318108,5.5470135,135.58,135.52,0.30051888]
[1767854318311,5.5470135,135.57,135.52,0.30051888]
[1767854318515,0.30981357,135.6,135.54,0.05689296]
[1767854318811,5.54878879,135.59,135.54,0.05689296]
[1767854319012,5.54878879,135.58,135.54,0.05689296]
[1767854319202,0.30981357,135.6,135.54,0.05689296]
[1767854319410,12.19421136,135.59,135.54,0.05689296]
[1767854319605,5.54871136,135.58,135.54,0.05689296]
[1767854320306,0.30981357,135.63,135.54,0.05689296]
[1767854320811,0.30981357,135.63,135.54,87.18]
[1767854321206,6.95331357,135.63,135.57,0.05472186]
[1767854321913,0.30981357,135.62,135.57,0.05472186]
[1767854322306,6.95381357,135.62,135.57,0.05472186]
[1767854324012,0.30981357,135.62,135.57,0.05472186]
[1767854324416,0.30981357,135.62,135.48,106.36240454]
[1767854324417,1.78981357,135.62,135.48,106.36240454]
[1767854324719,0.35761445,135.61,135.49,87.18]
[1767854325017,0.30981357,135.6,135.5,103.4418]
[1767854325224,0.30981357,135.6,135.51,87.18]
[1767854325714,0.04939024,135.57,135.51,87.18]
[1767854325914,0.04939024,135.57,135.49,125.6764]
[1767854326116,0.30981357,135.6,135.49,125.6764]
[1767854326117,0.30981357,135.6,135.54,0.04746683]
[1767854326714,0.30981357,135.6,135.54,6.69526683]
[1767854330120,6.95501357,135.6,135.54,0.04746683]
[1767854331518,0.30981357,135.58,135.54,0.04746683]
[1767854331713,0.36199441,135.58,135.5,87.18]
[1767854331922,0.36199441,135.58,135.48,2.90900454]
[1767854332120,0.30981357,135.58,135.49,87.18]
[1767854332315,6.95641357,135.57,135.49,87.18]
[1767854332522,5.51130634,135.56,135.49,87.18]
[1767854332722,6.95641357,135.57,135.49,87.18]
[1767854333023,0.05297766,135.54,135.49,93.8303]
[1767854338729,0.05297766,135.54,135.49,6.6503]
[1767854338933,5.51324501,135.53,135.46,87.18]
[1767854339127,0.36279123,135.54,135.46,87.18]
[1767854339325,5.51364343,135.53,135.46,87.18]
[1767854339524,0.30981357,135.54,135.43,103.4932]
[1767854339831,0.04828755,135.51,135.44,87.18]
[1767854340417,0.04828755,135.51,135.45,87.18]
[1767854340821,0.04828755,135.51,135.43,103.4932]
[1767854341036,0.04828755,135.51,135.45,6.6522]
[1767854341634,0.30981357,135.53,135.46,6.6517]
[1767854341832,0.04858313,135.49,135.46,6.6517]
[1767854342130,0.30981357,135.53,135.46,6.6517]
[1767854342333,0.30981357,135.53,135.46,6.70269718]
[1767854342632,0.31092876,135.55,135.47,93.8312]
[1767854342927,5.81905777,135.54,135.47,6.6512]
[1767854343132,5.50812901,135.53,135.47,93.8312]
[1767854343328,0.31092876,135.54,135.47,93.8312]
[1767854343530,5.50697946,135.53,135.49,0.05032211]
[1767854343834,0.31092876,135.54,135.49,0.05032211]
[1767854344135,5.50699759,135.53,135.49,0.05032211]
[1767854344341,0.31092876,135.54,135.49,0.05032211]
[1767854344520,5.50600783,135.53,135.49,0.05032211]
[1767854344724,0.31092876,135.54,135.49,0.05032211]
[1767854344918,5.50602936,135.53,135.49,0.05032211]
[1767854345238,0.31092876,135.54,135.49,0.05032211]
[1767854345534,5.50518334,135.53,135.49,0.05032211]
[1767854345732,0.31092876,135.54,135.49,0.05032211]
[1767854345919,5.50520936,135.53,135.49,0.05032211]
[1767854346127,0.31092876,135.54,135.49,0.05032211]
[1767854346434,5.50435084,135.53,135.49,0.05032211]
[1767854346733,0.31092876,135.54,135.49,0.05032211]
[1767854346932,5.50411885,135.53,135.49,0.05032211]
[1767854347134,0.31092876,135.54,135.49,0.05032211]
[1767854347435,5.50366044,135.53,135.49,0.05032211]
[1767854347737,0.31092876,135.54,135.49,0.05032211]
[1767854347935,5.50305003,135.53,135.49,0.05032211]
[1767854348128,0.31092876,135.54,135.49,0.05032211]
[1767854348329,5.50305003,135.53,135.49,0.05032211]
[1767854348530,0.31092876,135.54,135.49,0.05032211]
[1767854348730,0.31092876,135.52,135.46,87.2]
[1767854348926,0.35890458,135.52,135.46,87.2]
[1767854350536,0.35890458,135.52,135.47,6.6512]
[1767854351129,0.3244744,135.5,135.42,105.36514772]
[1767854351336,0.04797582,135.52,135.46,1.86184772]
[1767854351534,0.3244744,135.53,135.46,1.86184772]
[1767854351830,0.3244744,135.53,135.46,89.06184772]
[1767854352032,0.05008938,135.5,135.46,89.06184772]
[1767854352232,0.3244744,135.53,135.47,6.6512]
[1767854352438,0.3244744,135.53,135.46,89.06184772]
[1767854353533,0.3244744,135.53,135.46,95.71354772]
[1767854354033,0.3244744,135.53,135.48,0.05272416]
[1767854358744,6.9729744,135.53,135.48,0.05272416]
[1767854359240,0.3244744,135.48,135.41,1.86184772]
[1767854359437,0.3244744,135.48,135.41,89.08184772]
[1767854359639,0.3244744,135.51,135.41,89.08184772]
[1767854359849,0.3244744,135.51,135.42,87.22]
[1767854360140,0.3244744,135.49,135.42,87.22]
[1767854360344,0.3244744,135.49,135.41,87.22]
[1767854361046,0.04920622,135.46,135.41,87.22]
[1767854361740,0.04920622,135.46,135.42,1.86184772]
[1767854362346,0.04920622,135.46,135.41,87.22]
[1767854362544,0.04920622,135.46,135.41,89.08184772]
[1767854369057,0.37368062,135.46,135.38,6.6554]
[1767854369257,0.37368062,135.46,135.39,87.22]
[1767854369461,0.3244744,135.46,135.39,87.22]
[1767854369965,0.04701763,135.44,135.39,87.22]
[1767854370566,0.04701763,135.44,135.38,87.24]
[1767854371170,0.3244744,135.43,135.37,8.51794772]
[1767854371465,0.3244744,135.43,135.37,95.75794772]
[1767854372068,6.69981763,135.44,135.37,95.75794772]
[1767854372365,6.69981763,135.44,135.37,93.8961]
[1767854372569,6.69981763,135.44,135.37,95.75794772]
[1767854373660,7.00522451,135.44,135.37,95.75794772]
[1767854374460,6.95880688,135.43,135.35,8.51864772]
[1767854374672,0.30540688,135.43,135.35,1.86184772]
[1767854374876,0.30540688,135.43,135.35,89.10184772]
[1767854375169,0.30540688,135.41,135.34,87.24]
[1767854375469,0.05023068,135.4,135.34,87.24]
[1767854375769,0.05023068,135.4,135.34,93.8976]
[1767854375962,0.05023068,135.4,135.35,1.86184772]
[1767854377667,0.05023068,135.4,135.35,8.51894772]
[1767854381076,0.30540688,135.44,135.37,1.86184772]
[1767854381372,0.30540688,135.44,135.38,87.26]
[1767854382370,0.30540688,135.47,135.41,1.86184772]
[1767854382573,0.30540688,135.47,135.41,89.12184772]
[1767854383675,6.95700688,135.47,135.41,89.12184772]
[1767854386473,6.95610688,135.49,135.41,95.77594772]
[1767854387778,6.6509,135.48,135.41,89.12184772]
[1767854389268,6.6509,135.48,135.43,0.04865862]
[1767854391383,0.30540688,135.47,135.4,87.26]
[1767854391979,6.652,135.46,135.4,87.26]
[1767854392677,0.05520647,135.44,135.4,87.26]
[1767854393987,0.05520647,135.44,135.4,93.9147]
[1767854394186,0.30540688,135.47,135.41,0.04981364]
[1767854396688,6.6519,135.46,135.41,0.04981364]
[1767854399988,0.30540688,135.47,135.41,0.04981364]
[1767854401589,6.95670688,135.47,135.41,0.04981364]
[1767854402194,0.32656208,135.46,135.41,0.04981364]
[1767854404096,0.32656208,135.44,135.36,1.86184772]
[1767854404294,0.32656208,135.44,135.36,87.26]
[1767854404496,12.47827157,135.43,135.36,87.26]
[1767854404691,6.98006208,135.43,135.36,87.26]
[1767854404893,6.98006208,135.43,135.35,8.51894772]
[1767854405295,6.98006208,135.43,135.36,87.26]
[1767854409895,0.32656208,135.43,135.36,93.9166]
[1767854412801,0.32656208,135.43,135.37,6.6561]
[1767854413003,0.32765977,135.45,135.37,6.6561]
[1767854413203,5.529772,135.44,135.36,87.26]
[1767854413503,0.32765977,135.45,135.36,87.26]
[1767854413705,5.53044772,135.44,135.36,87.26]
[1767854413907,0.32765977,135.45,135.36,87.26]
[1767854414203,5.52932796,135.44,135.37,6.6558]
[1767854414402,0.32765977,135.45,135.37,6.6558]
[1767854414604,5.52895329,135.44,135.38,6.6557]
[1767854414791,5.52895329,135.44,135.36,87.26]
[1767854414792,6.97995977,135.45,135.35,103.5535]
[1767854414991,5.85633152,135.44,135.36,87.26]
[1767854415192,5.52867175,135.43,135.36,87.26]
[1767854415395,0.32765977,135.44,135.36,87.26]
[1767854415590,5.52831159,135.43,135.36,87.26]
[1767854415799,6.98045977,135.44,135.36,87.26]
[1767854416102,5.52831159,135.43,135.36,87.26]
[1767854416302,6.98045977,135.44,135.36,87.26]
[1767854416495,5.52787524,135.43,135.36,87.26]
[1767854416696,6.98045977,135.44,135.36,87.26]
[1767854416995,5.52785855,135.43,135.36,87.26]
[1767854417198,6.98045977,135.44,135.36,87.26]
[1767854417496,5.52743458,135.43,135.36,87.26]
[1767854417692,6.98045977,135.44,135.36,87.26]
[1767854417890,5.52708962,135.43,135.36,87.26]
[1767854418088,6.98045977,135.44,135.36,87.26]
[1767854418304,5.52730033,135.43,135.36,87.26]
[1767854418504,6.98045977,135.44,135.36,87.26]
[1767854418696,5.52703599,135.43,135.36,87.26]
[1767854418894,6.98045977,135.44,135.36,87.26]
[1767854419200,5.52670166,135.43,135.36,87.26]
[1767854419406,0.32765977,135.42,135.37,87.28]
[1767854420106,5.8534449,135.41,135.32,2.91293315]
[1767854420301,0.32765977,135.41,135.33,87.28]
[1767854421804,6.98195977,135.41,135.33,93.9377]
[1767854422503,0.32765977,135.4,135.33,93.9377]
[1767854422809,0.32765977,135.4,135.33,87.28]
[1767854422810,6.98245977,135.4,135.33,87.28]
[1767854423708,6.98245977,135.4,135.33,93.9382]
[1767854424603,0.32765977,135.4,135.34,6.6575]
[1767854425301,0.32765977,135.43,135.34,6.6575]
[1767854425500,5.85379807,135.42,135.34,6.6575]
[1767854425709,12.1804383,135.41,135.34,6.6575]
[1767854425910,5.5261383,135.4,135.35,6.6571]
[1767854426110,0.32765977,135.42,135.35,6.6571]
[1767854426407,5.8526713,135.41,135.35,6.6571]
[1767854426607,5.52501153,135.4,135.35,6.6571]
[1767854426806,0.32765977,135.41,135.35,6.6571]
[1767854427002,5.52489969,135.4,135.35,6.6571]
[1767854427206,0.32765977,135.41,135.35,6.6571]
[1767854427510,5.52405263,135.4,135.35,6.6571]
[1767854427710,0.32765977,135.41,135.35,6.6571]
[1767854427908,5.52443398,135.4,135.35,6.6571]
[1767854428206,0.32765977,135.41,135.35,6.6571]
[1767854428510,5.5236145,135.4,135.35,6.6571]
[1767854428707,0.32765977,135.41,135.35,6.6571]
[1767854428908,5.5236145,135.4,135.34,87.28]
[1767854429214,0.32765977,135.41,135.34,87.28]
[1767854429715,6.98165977,135.42,135.34,87.28]
[1767854430013,12.17718582,135.41,135.34,93.9376]
[1767854430315,6.6543,135.41,135.34,93.9376]
[1767854434218,5.52290749,135.4,135.34,93.9376]
[1767854434414,6.6543,135.41,135.34,93.9376]
[1767854434617,5.52290749,135.4,135.34,93.9376]
[1767854434808,6.6543,135.41,135.34,93.9376]
[1767854435310,5.52280262,135.4,135.34,93.9376]
[1767854435508,6.6543,135.41,135.34,93.9376]
[1767854435710,0.30261549,135.44,135.34,87.28]
[1767854436010,0.30261549,135.44,135.35,2.91293315]
[1767854436216,0.30261549,135.44,135.36,87.28]
[1767854436715,0.30261549,135.44,135.37,6.6562]
[1767854437417,0.30261549,135.44,135.36,87.28]
[1767854437720,0.30261549,135.48,135.36,87.28]
[1767854437930,0.30261549,135.46,135.36,87.28]
[1767854438219,5.52617065,135.45,135.36,87.28]
[1767854438423,5.52617065,135.44,135.36,87.28]
[1767854438608,6.95441549,135.46,135.39,6.6551]
[1767854438812,5.52681486,135.45,135.39,6.6551]
[1767854439113,5.52681486,135.44,135.39,6.6551]
[1767854439314,6.95441549,135.46,135.39,6.6551]
[1767854439520,5.52758432,135.45,135.39,6.6551]
[1767854439818,5.52758432,135.44,135.39,6.6551]
[1767854440013,6.95441549,135.46,135.39,6.6551]
[1767854440220,5.52780878,135.45,135.39,6.6551]
[1767854440531,5.52780878,135.44,135.39,6.6551]
[1767854440717,6.95441549,135.46,135.39,6.6551]
[1767854440914,5.52839316,135.45,135.39,6.6551]
[1767854441114,5.52839316,135.44,135.39,6.6551]
[1767854441315,6.95441549,135.46,135.39,6.6551]
[1767854441617,5.52924704,135.45,135.39,6.6551]
[1767854441820,5.52924704,135.44,135.39,6.6551]
[1767854442119,6.95441549,135.46,135.39,6.6551]
[1767854442321,5.52942806,135.45,135.39,6.6551]
[1767854442623,5.52942806,135.44,135.39,6.6551]
[1767854442821,6.95441549,135.46,135.39,6.6551]
[1767854443020,5.53025172,135.45,135.39,6.6551]
[1767854443324,5.53025172,135.44,135.39,6.6551]
[1767854443524,0.30261549,135.46,135.39,6.6551]
[1767854443830,5.53108653,135.45,135.39,6.6551]
[1767854444033,0.30261549,135.43,135.3,103.5923]
[1767854444324,0.30261549,135.43,135.34,87.28]
[1767854444520,0.30261549,135.43,135.32,2.91293315]
[1767854444718,0.30261549,135.43,135.36,6.6567]
[1767854445221,0.30261549,135.43,135.37,87.28]
[1767854445727,5.53168054,135.42,135.37,87.28]
[1767854446024,0.30261549,135.43,135.37,87.28]
[1767854446222,5.53269012,135.42,135.37,87.28]
[1767854446426,0.30261549,135.43,135.37,87.28]
[1767854446620,5.53269012,135.42,135.37,87.28]
[1767854446825,0.30261549,135.43,135.37,87.28]
[1767854447032,5.53269012,135.42,135.37,87.28]
[1767854447218,0.30261549,135.43,135.37,87.28]
[1767854447525,5.53404665,135.42,135.37,87.28]
[1767854447727,0.30261549,135.43,135.37,87.28]
[1767854448025,5.53404665,135.42,135.37,87.28]
[1767854448228,0.30261549,135.43,135.37,87.28]
[1767854448421,5.53510237,135.42,135.37,87.28]
[1767854448621,0.30261549,135.43,135.37,87.28]
[1767854448822,5.53510613,135.42,135.37,87.28]
[1767854449027,0.30261549,135.45,135.37,93.936]
[1767854449325,5.53585199,135.44,135.37,93.936]
[1767854449531,5.53585199,135.43,135.37,93.936]
[1767854449725,5.53585199,135.42,135.37,93.936]
[1767854449935,0.30261549,135.45,135.37,93.936]
[1767854450126,5.5358619,135.44,135.37,93.936]
[1767854450319,5.5358619,135.43,135.37,93.936]
[1767854450523,6.95501549,135.45,135.37,93.936]
[1767854450721,5.53578814,135.44,135.37,93.936]
[1767854450927,5.53578814,135.43,135.37,93.936]
[1767854451126,6.95501549,135.45,135.37,93.936]
[1767854451433,5.5356828,135.44,135.37,93.936]
[1767854451629,5.5356828,135.43,135.37,93.936]
[1767854451827,0.30261549,135.47,135.38,6.6556]
[1767854452133,0.30261549,135.45,135.38,6.6556]
[1767854452328,5.53644548,135.44,135.39,87.28]
[1767854452528,5.53644548,135.43,135.39,87.28]
[1767854452734,0.30261549,135.45,135.39,87.28]
[1767854452938,5.53631632,135.44,135.39,87.28]
[1767854453144,5.53631632,135.43,135.39,87.28]
[1767854453444,0.30261549,135.45,135.39,87.28]
[1767854453638,5.53622512,135.44,135.39,87.28]
[1767854453838,5.53622512,135.43,135.39,87.28]
[1767854454037,0.30261549,135.45,135.39,87.28]
[1767854454238,5.53618409,135.44,135.39,87.28]
[1767854454440,5.53618409,135.43,135.39,87.28]
[1767854454745,0.30261549,135.45,135.39,87.28]
[1767854454933,5.53618409,135.44,135.39,87.28]
[1767854455132,5.53618409,135.43,135.39,93.9352]
[1767854455337,0.30261549,135.45,135.39,93.9352]
[1767854455538,5.53612094,135.44,135.39,93.9352]
[1767854455738,5.53612094,135.43,135.39,93.9352]
[1767854456041,0.30261549,135.45,135.39,93.9352]
[1767854456239,5.53579522,135.44,135.39,93.9352]
[1767854456439,0.30261549,135.45,135.39,93.9352]
[1767854456733,5.53579522,135.44,135.39,93.9352]
[1767854456934,0.30261549,135.45,135.39,93.9352]
[1767854457137,5.53579146,135.44,135.39,93.9352]
[1767854457348,5.53579146,135.43,135.39,93.9352]
[1767854457649,0.30261549,135.45,135.39,93.9352]
[1767854457833,5.53561423,135.44,135.4,6.6547]
[1767854458039,0.30261549,135.47,135.4,6.6547]
[1767854458240,5.53560174,135.46,135.4,6.6547]
[1767854458442,5.53560174,135.45,135.4,6.6547]
[1767854458751,0.30261549,135.47,135.4,6.6547]
[1767854458945,5.53559533,135.46,135.4,6.6547]
[1767854459243,5.53559533,135.45,135.4,6.6547]
[1767854459448,0.30261549,135.47,135.4,6.6547]
[1767854459643,5.53515383,135.46,135.4,6.6547]
[1767854459947,6.95391549,135.47,135.39,87.28]
[1767854459948,5.53515383,135.45,135.39,87.28]